bitfinex/quotes_BTCUSD_20240918
["timestamp","ask_amount","ask_price","bid_price","bid_amount"]
[1726655743828,0.002811,59879.0,59878.0,0.835029]
[1726655744684,0.002811,59879.0,59878.0,0.501017]
[1726655744887,0.002811,59879.0,59878.0,0.835029]
[1726655745739,0.003811,59879.0,59878.0,0.842029]
[1726655746185,0.002811,59879.0,59878.0,0.835029]
[1726655746417,0.003811,59879.0,59878.0,0.843029]
[1726655746901,0.002811,59879.0,59878.0,0.835029]
[1726655747095,0.003811,59879.0,59878.0,0.842029]
[1726655748169,0.003811,59879.0,59878.0,0.508017]
[1726655748386,0.176911,59879.0,59878.0,0.007]
[1726655748593,0.00199,59876.0,59875.0,0.334027]
[1726655748803,0.00199,59876.0,59875.0,0.501041]
[1726655749022,0.00199,59876.0,59875.0,0.83507]
[1726655749245,0.01564667,59876.0,59875.0,0.83507]
[1726655749472,0.00199,59876.0,59875.0,0.501041]
[1726655749720,0.00199,59875.0,59874.0,0.167015]
[1726655750151,0.00199,59875.0,59874.0,0.501049]
[1726655750368,0.01564667,59875.0,59874.0,0.501049]
[1726655750675,0.00199,59875.0,59874.0,0.835083]
[1726655750889,0.01564667,59875.0,59874.0,0.835083]
[1726655751108,0.00199,59875.0,59874.0,0.835083]
[1726655751584,0.01564667,59875.0,59874.0,0.835083]
[1726655752270,0.01664667,59875.0,59874.0,0.846083]
[1726655752468,0.00199,59875.0,59874.0,0.835083]
[1726655752874,0.00299,59875.0,59874.0,0.841083]
[1726655753252,0.00199,59878.0,59874.0,0.334034]
[1726655753475,0.000821,59879.0,59878.0,0.501018]
[1726655753695,0.000821,59879.0,59878.0,0.83503]
[1726655753696,0.002811,59879.0,59878.0,0.83503]
[1726655754401,0.000821,59879.0,59878.0,0.83503]
[1726655754675,0.002811,59879.0,59878.0,0.83503]
[1726655755077,0.002811,59879.0,59878.0,0.501018]
[1726655755317,0.002811,59879.0,59878.0,0.83503]
[1726655756159,0.003811,59879.0,59878.0,0.84203]
[1726655756371,0.002811,59879.0,59878.0,0.83503]
[1726655756790,0.002811,59879.0,59878.0,0.84003]
[1726655756999,0.002811,59879.0,59878.0,0.83503]
[1726655757968,0.002811,59879.0,59878.0,0.167006]
[1726655758176,0.01645078,59879.0,59878.0,0.167006]
[1726655758391,0.002811,59879.0,59878.0,0.501018]
[1726655758613,0.01745078,59879.0,59878.0,0.508018]
[1726655758832,0.003811,59879.0,59878.0,0.508018]
[1726655759055,0.01645078,59879.0,59878.0,0.501018]
[1726655759290,0.003811,59879.0,59878.0,0.501018]
[1726655759495,0.01745078,59879.0,59878.0,0.501018]
[1726655759721,0.01645078,59879.0,59878.0,0.501018]
[1726655759932,0.01745078,59879.0,59878.0,0.508018]
[1726655760141,0.01745078,59879.0,59878.0,0.501018]
[1726655760142,0.01645078,59879.0,59878.0,0.501018]
[1726655760347,0.002811,59879.0,59878.0,0.501018]
[1726655760561,0.002811,59879.0,59878.0,0.505018]
[1726655761930,0.002811,59879.0,59878.0,0.83503]
[1726655761931,0.01645078,59879.0,59878.0,0.83503]
[1726655762140,0.002811,59879.0,59878.0,0.83503]
[1726655762373,0.003811,59879.0,59878.0,0.84203]
[1726655762590,0.002811,59879.0,59878.0,0.83503]
[1726655762945,0.002811,59879.0,59878.0,0.83903]
[1726655763485,0.01904423,59881.0,59880.0,0.167]
[1726655763853,0.03268105,59881.0,59880.0,0.167]
[1726655764281,0.03268105,59881.0,59880.0,0.501001]
[1726655765439,0.03268105,59881.0,59880.0,0.167]
[1726655765642,0.03268105,59881.0,59880.0,0.501001]
[1726655766045,0.01904423,59881.0,59880.0,0.501001]
[1726655766438,0.03268105,59881.0,59880.0,0.506001]
[1726655767283,0.03268105,59881.0,59880.0,0.501001]
[1726655768479,0.03350205,59881.0,59880.0,0.501001]
[1726655768954,0.03350205,59881.0,59880.0,0.503001]
[1726655769457,0.03350205,59881.0,59880.0,0.501001]
[1726655769708,0.03350205,59881.0,59880.0,0.503001]
[1726655769946,0.20049905,59881.0,59877.0,0.167007]
[1726655770247,0.20049905,59881.0,59873.0,0.334039]
[1726655770248,0.20050005,59881.0,59873.0,0.334039]
[1726655770506,0.20050005,59881.0,59880.0,0.002]
[1726655770507,0.03350205,59881.0,59880.0,0.002]
[1726655770702,0.20050005,59881.0,59877.0,0.167006]
[1726655770949,0.20050005,59881.0,59871.0,0.334049]
[1726655770950,0.1881,59880.0,59871.0,0.334049]
[1726655771383,0.1881,59880.0,59870.0,0.1]
[1726655771384,0.167007,59878.0,59872.0,0.334041]
[1726655771405,0.167007,59878.0,59870.0,0.1]
[1726655771406,0.167004,59879.0,59874.0,0.167016]
[1726655771647,0.334009,59879.0,59870.0,0.434056]
[1726655771858,0.167009,59877.0,59872.0,0.167022]
[1726655772047,0.167009,59877.0,59873.0,0.16702]
[1726655772252,0.1881,59880.0,59872.0,0.167022]
[1726655772467,0.1881,59880.0,59870.0,0.1]
[1726655772468,0.01363672,59876.0,59873.0,0.167018]
[1726655772725,0.167009,59877.0,59873.0,0.167018]
[1726655772932,0.1881,59880.0,59873.0,0.167018]
[1726655773139,0.01363672,59876.0,59873.0,0.167018]
[1726655773348,0.1881,59880.0,59873.0,0.001]
[1726655773559,0.01363672,59875.0,59873.0,0.001]
[1726655773863,0.167011,59877.0,59872.0,0.167022]
[1726655774060,0.01363672,59874.0,59873.0,0.002]
[1726655774243,0.167011,59877.0,59873.0,0.002]
[1726655774445,0.01363672,59874.0,59872.0,0.167022]
[1726655774639,0.167011,59876.0,59872.0,0.167022]
[1726655774845,0.01363672,59873.0,59872.0,0.167022]
[1726655775765,0.167011,59877.0,59872.0,0.167022]
[1726655775992,0.167011,59877.0,59873.0,0.001]
[1726655776214,0.167011,59877.0,59872.0,0.167022]
[1726655777214,0.171011,59877.0,59872.0,0.167022]
[1726655778302,0.167014,59876.0,59872.0,0.167022]
[1726655778490,0.338018,59877.0,59873.0,0.16702]
[1726655778491,0.004,59877.0,59873.0,0.16702]
[1726655778711,0.171009,59877.0,59873.0,0.16702]
[1726655778937,0.004,59877.0,59873.0,0.16702]
[1726655779328,0.004,59877.0,59872.0,0.167021]
[1726655779569,0.1881,59880.0,59874.0,0.167016]
[1726655779794,0.004,59877.0,59874.0,0.167016]
[1726655780215,0.1881,59880.0,59874.0,0.167016]
[1726655780498,0.004,59877.0,59874.0,0.167016]
[1726655780802,0.1881,59880.0,59874.0,0.167016]
[1726655781205,0.003,59877.0,59875.0,0.167013]
[1726655781433,0.1881,59880.0,59875.0,0.167013]
[1726655782685,0.1881,59880.0,59873.0,0.334037]
[1726655782937,0.1881,59880.0,59877.0,0.167008]
[1726655783204,0.1881,59880.0,59879.0,0.167003]
[1726655783511,0.002,59877.0,59876.0,0.16701]
[1726655783924,0.1881,59880.0,59876.0,0.334022]
[1726655784513,0.1941,59880.0,59876.0,0.334022]
[1726655784528,0.01362569,59879.0,59878.0,0.167005]
[1726655784790,0.01362569,59879.0,59878.0,0.835029]
[1726655785258,0.01986523,59881.0,59880.0,0.167]
[1726655785508,0.01986523,59881.0,59873.0,0.15009194]
[1726655785723,0.01986523,59881.0,59880.0,0.167]
[1726655785724,0.03348877,59881.0,59880.0,0.167]
[1726655786161,0.03348877,59881.0,59880.0,0.501001]
[1726655786374,0.01986523,59881.0,59880.0,0.501001]
[1726655786816,0.03348877,59881.0,59880.0,0.501001]
[1726655787501,0.03348877,59881.0,59880.0,0.835002]
[1726655787730,0.03348877,59881.0,59880.0,0.501001]
[1726655788477,0.02086523,59881.0,59880.0,0.501001]
[1726655789348,0.02086523,59881.0,59880.0,0.835002]
[1726655790348,0.01986523,59881.0,59880.0,0.835002]
[1726655790590,0.01986523,59881.0,59880.0,1.173003]
[1726655791278,0.01986523,59881.0,59880.0,1.70727949]
[1726655791502,0.01986523,59881.0,59880.0,1.96410548]
[1726655791825,0.01986523,59881.0,59880.0,2.50810648]
[1726655792047,0.01986523,59881.0,59880.0,2.17410548]
[1726655792048,0.02086523,59881.0,59880.0,2.17410548]
[1726655792304,0.01986523,59881.0,59880.0,2.32457316]
[1726655792492,0.01986523,59881.0,59880.0,2.17415992]
[1726655793650,0.01986523,59881.0,59880.0,2.54516092]
[1726655793898,0.01986523,59881.0,59880.0,2.54016092]
[1726655794364,0.02086523,59881.0,59880.0,2.55416092]
[1726655794632,0.02086523,59881.0,59880.0,2.21815992]
[1726655794850,0.02086523,59881.0,59880.0,2.21807372]
[1726655795060,0.01986523,59881.0,59880.0,2.20407372]
[1726655795284,0.01986523,59881.0,59880.0,2.20607372]
[1726655795503,0.02086523,59881.0,59880.0,2.3701291]
[1726655796068,0.02086523,59881.0,59880.0,2.3717711]
[1726655796210,0.02086523,59881.0,59880.0,2.7057721]
[1726655796681,0.02086523,59881.0,59880.0,2.55571672]
[1726655796899,0.01986523,59881.0,59880.0,2.20771572]
[1726655797816,0.02086523,59881.0,59880.0,2.22171572]
[1726655798087,0.01986523,59881.0,59880.0,2.20769588]
[1726655798578,0.02086523,59881.0,59880.0,2.55569688]
[1726655798795,0.01986523,59881.0,59880.0,2.54169688]
[1726655800009,0.00504,59900.0,59899.0,1.268632]
[1726655800474,0.01886571,59900.0,59899.0,1.268632]
[1726655800696,0.00504,59900.0,59899.0,1.268632]
[1726655801204,0.00504,59900.0,59899.0,0.934737]
[1726655801674,0.19204,59900.0,59899.0,0.944737]
[1726655802280,0.00604,59900.0,59899.0,0.944737]
[1726655802566,0.01987618,59900.0,59899.0,1.278632]
[1726655802805,0.00604,59900.0,59899.0,1.278632]
[1726655804053,0.00504,59900.0,59899.0,1.268632]
[1726655804581,0.00504,59900.0,59899.0,1.273632]
[1726655805059,0.00504,59900.0,59899.0,1.28340774]
[1726655805314,0.00504,59900.0,59899.0,1.44646141]
[1726655805775,0.00504,59900.0,59899.0,1.77535641]
[1726655806238,0.00504,59900.0,59899.0,2.00621206]
[1726655806479,0.00504,59900.0,59899.0,3.8773384]
[1726655806717,0.00504,59900.0,59899.0,2.22364685]
[1726655807406,0.00504,59900.0,59899.0,2.1488734]
[1726655807656,0.00504,59900.0,59899.0,2.0053784]
[1726655807942,0.00604,59900.0,59899.0,2.04508224]
[1726655808121,0.00604,59900.0,59899.0,2.03608224]
[1726655808122,0.00504,59900.0,59899.0,2.03608224]
[1726655808305,0.006861,59900.0,59899.0,2.05008224]
[1726655808531,0.006861,59900.0,59899.0,2.00225641]
[1726655809004,0.006861,59900.0,59899.0,2.00025641]
[1726655810187,0.006861,59900.0,59899.0,2.00225641]
[1726655810414,0.005861,59900.0,59899.0,1.98625641]
[1726655810633,0.005861,59900.0,59899.0,2.00025641]
[1726655810848,0.005861,59900.0,59899.0,1.98625641]
[1726655811313,0.005861,59900.0,59899.0,2.00025641]
[1726655811628,0.005861,59900.0,59899.0,1.77535641]
[1726655812103,0.005861,59900.0,59899.0,1.44146141]
[1726655812126,0.005861,59900.0,59899.0,1.45546141]
[1726655812281,0.005861,59900.0,59899.0,1.44146141]
[1726655813411,0.005861,59900.0,59899.0,1.77535641]
[1726655813846,0.006861,59900.0,59899.0,1.78935641]
[1726655814068,0.006861,59900.0,59899.0,1.77535641]
[1726655814069,0.005861,59900.0,59899.0,1.77535641]
[1726655814332,0.006861,59900.0,59899.0,1.78935641]
[1726655814813,0.005861,59900.0,59899.0,1.77535641]
[1726655815056,0.005861,59900.0,59899.0,1.81935641]
[1726655815057,0.006861,59900.0,59899.0,1.81935641]
[1726655815565,0.005861,59900.0,59899.0,1.80535641]
[1726655815807,0.006861,59900.0,59899.0,1.81935641]
[1726655816271,0.006861,59900.0,59899.0,2.15325141]
[1726655816555,0.006861,59900.0,59899.0,2.1722964]
[1726655816703,0.006861,59900.0,59899.0,2.22202308]
[1726655817400,0.006861,59900.0,59899.0,2.24706985]
[1726655817601,0.006861,59900.0,59899.0,2.22201641]
[1726655818172,0.006861,59900.0,59899.0,1.8880596]
[1726655818325,0.006861,59900.0,59899.0,1.82433959]
[1726655818326,0.005861,59900.0,59899.0,1.82433959]
[1726655818539,0.006861,59900.0,59899.0,1.88805994]
[1726655818752,0.006861,59900.0,59899.0,2.22195494]
[1726655818952,0.006861,59900.0,59899.0,2.22395494]
[1726655820475,0.006861,59900.0,59899.0,2.22195494]
[1726655820692,0.006861,59900.0,59899.0,2.22395494]
[1726655821126,0.006861,59900.0,59899.0,2.22195494]
[1726655821666,0.006861,59900.0,59899.0,2.22395494]
[1726655821832,0.006861,59900.0,59899.0,2.22395476]
[1726655822514,0.006861,59900.0,59899.0,2.17423459]
[1726655822723,0.006861,59900.0,59899.0,4.11877485]
[1726655822724,1e-06,59900.0,59899.0,4.11877485]
[1726655822953,1e-06,59900.0,59899.0,4.14914793]
[1726655823145,0.00011,59909.0,59908.0,0.166922]
[1726655823387,0.00011,59909.0,59908.0,2.21060067]
[1726655823583,0.00011,59909.0,59908.0,2.61314479]
[1726655823584,1e-06,59909.0,59908.0,2.61314479]
[1726655824015,1e-06,59909.0,59908.0,2.86795084]
[1726655824363,0.000819,59920.0,59908.0,2.86795084]
[1726655824364,0.000819,59920.0,59916.0,0.06]
[1726655824525,0.000821,59927.0,59926.0,0.266872]
[1726655824738,0.000821,59927.0,59926.0,1.43115767]
[1726655824987,0.000821,59927.0,59926.0,1.76490167]
[1726655825188,0.142942,59939.0,59938.0,0.934195]
[1726655825411,0.218021,59941.0,59940.0,0.934167]
[1726655825412,0.000821,59941.0,59940.0,0.934167]
[1726655825738,0.000821,59941.0,59940.0,0.1]
[1726655826121,0.000821,59941.0,59931.0,0.333715]
[1726655826143,0.000821,59941.0,59926.0,0.614616]
[1726655826144,0.001,59927.0,59926.0,0.614616]
[1726655826352,0.001,59927.0,59926.0,1.282104]
[1726655826789,0.001,59927.0,59926.0,0.614616]
[1726655827051,0.2209,59927.0,59926.0,0.614616]
[1726655827534,0.2199,59927.0,59926.0,0.166872]
[1726655827734,0.2199,59927.0,59926.0,0.500616]
[1726655828169,0.3974,59927.0,59926.0,0.500616]
[1726655828596,0.3974,59927.0,59926.0,0.502616]
[1726655828821,0.3974,59927.0,59926.0,0.1]
[1726655829042,0.3974,59927.0,59912.0,0.07455893]
[1726655829043,0.3974,59927.0,59923.0,0.1]
[1726655829259,0.3974,59927.0,59926.0,0.002]
[1726655829492,0.3974,59927.0,59926.0,0.502616]
[1726655829946,0.3974,59927.0,59926.0,0.168872]
[1726655830186,0.3974,59927.0,59926.0,0.002]
[1726655830387,0.3974,59927.0,59926.0,0.168872]
[1726655830818,0.3974,59927.0,59926.0,0.166872]
[1726655831025,0.3984,59927.0,59926.0,0.166872]
[1726655831473,0.3974,59927.0,59926.0,0.166872]
[1726655831697,0.399221,59927.0,59926.0,0.500616]
[1726655832807,0.399221,59927.0,59926.0,0.166872]
[1726655834952,0.221721,59927.0,59926.0,0.500616]
[1726655835224,0.221721,59927.0,59926.0,0.83436]
[1726655835695,0.221721,59927.0,59920.0,0.1]
[1726655835696,0.333746,59926.0,59920.0,0.1]
[1726655835935,0.333746,59926.0,59918.0,0.266892]
[1726655835936,0.166883,59922.0,59918.0,0.266892]
[1726655836175,0.1756,59926.0,59918.0,0.1]
[1726655836431,0.1756,59926.0,59913.0,0.333814]
[1726655836432,0.1756,59926.0,59915.0,0.166902]
[1726655836672,0.333761,59924.0,59913.0,0.333814]
[1726655837073,0.166887,59921.0,59917.0,0.166895]
[1726655837357,0.166889,59920.0,59914.0,0.333808]
[1726655837573,0.346393,59919.0,59915.0,0.1]
[1726655838046,0.1795,59919.0,59915.0,0.266902]
[1726655838244,0.1795,59919.0,59915.0,0.433804]
[1726655838458,0.1795,59919.0,59917.0,0.166896]
[1726655838899,0.1805,59919.0,59917.0,0.166896]
[1726655839133,0.1795,59919.0,59918.0,0.166894]
[1726655839361,0.1795,59919.0,59918.0,0.266894]
[1726655839635,0.1835,59926.0,59918.0,0.1]
[1726655839810,0.1835,59926.0,59919.0,0.1]
[1726655839998,0.1835,59926.0,59925.0,0.166875]
[1726655840235,0.1835,59926.0,59923.0,0.166878]
[1726655840677,0.1835,59926.0,59924.0,0.166877]
[1726655840917,0.1835,59926.0,59920.0,0.333773]
[1726655841207,0.166876,59925.0,59921.0,0.166885]
[1726655841433,0.1764,59922.0,59915.0,0.14987637]
[1726655841655,0.16689,59920.0,59917.0,0.1]
[1726655841877,0.166886,59921.0,59917.0,0.1]
[1726655842130,0.166889,59920.0,59917.0,0.1]
[1726655842566,0.67705,59922.0,59921.0,0.001]
[1726655843024,0.166889,59921.0,59917.0,0.1]
[1726655843249,0.001,59921.0,59917.0,0.266897]
[1726655843494,0.167887,59921.0,59917.0,0.1]
[1726655843938,0.167887,59921.0,59917.0,0.266897]
[1726655844574,0.166887,59921.0,59917.0,0.266897]
[1726655845006,0.16689,59920.0,59915.0,0.1]
[1726655845242,0.1764,59922.0,59915.0,0.1]
[1726655845474,0.1764,59922.0,59918.0,0.1]
[1726655845993,0.001,59921.0,59918.0,0.1]
[1726655846232,0.166888,59921.0,59918.0,0.1]
[1726655846978,0.1774,59922.0,59918.0,0.1]
[1726655846979,0.1774,59922.0,59918.0,0.266894]
[1726655847017,0.166886,59921.0,59917.0,0.1]
[1726655847235,0.1774,59922.0,59915.0,0.1]
[1726655847740,0.344285,59922.0,59919.0,0.1]
[1726655847990,0.166889,59920.0,59919.0,0.1]
[1726655848235,0.1764,59922.0,59919.0,0.1]
[1726655848236,0.1774,59922.0,59919.0,0.1]
[1726655848460,0.166887,59921.0,59919.0,0.1]
[1726655848751,0.166887,59921.0,59918.0,0.1]
[1726655848976,0.344284,59922.0,59918.0,0.266894]
[1726655849212,0.344284,59922.0,59914.0,0.333807]
[1726655849213,0.166891,59920.0,59916.0,0.166898]
[1726655849446,0.166891,59920.0,59917.0,0.1]
[1726655849929,0.343285,59922.0,59917.0,0.266896]
[1726655850154,0.166887,59921.0,59917.0,0.266896]
[1726655850432,0.1764,59922.0,59921.0,0.500658]
[1726655850733,0.1764,59922.0,59918.0,0.333788]
[1726655850734,0.1764,59922.0,59919.0,0.166889]
[1726655850939,0.1764,59922.0,59919.0,0.1]
[1726655851184,0.1764,59922.0,59919.0,0.16689]
[1726655851418,0.001,59921.0,59919.0,0.16689]
[1726655851657,0.1764,59922.0,59919.0,0.16689]
[1726655851910,0.1774,59922.0,59918.0,0.333786]
[1726655852169,0.1764,59922.0,59917.0,0.1]
[1726655852666,0.1764,59922.0,59919.0,0.16689]
[1726655852882,0.1764,59922.0,59917.0,0.1]
[1726655852883,0.1774,59922.0,59920.0,0.166888]
[1726655853100,0.1774,59922.0,59919.0,0.166889]
[1726655853310,0.1774,59922.0,59920.0,0.166888]
[1726655853534,0.1764,59922.0,59920.0,0.166888]
[1726655853770,0.1764,59922.0,59919.0,0.266891]
[1726655854678,0.1764,59922.0,59920.0,0.166887]
[1726655855116,0.166875,59925.0,59921.0,0.166886]
[1726655855347,0.220721,59927.0,59926.0,0.166872]
[1726655855564,0.220721,59927.0,59926.0,0.500616]
[1726655855824,0.000821,59927.0,59926.0,0.83436]
[1726655856710,0.000821,59927.0,59926.0,1.31810712]
[1726655856938,0.001821,59927.0,59926.0,1.50616236]
[1726655857160,0.001821,59927.0,59926.0,1.53116392]
[1726655857397,0.001821,59927.0,59926.0,1.43115767]
[1726655857667,0.001821,59927.0,59926.0,1.45036584]
[1726655858823,0.001821,59927.0,59926.0,1.44089577]
[1726655859046,0.000821,59927.0,59926.0,1.44089577]
[1726655859284,0.000821,59927.0,59926.0,1.46710394]
[1726655859503,0.000821,59927.0,59926.0,1.44089577]
[1726655859948,0.000821,59927.0,59926.0,1.45389577]
[1726655860433,0.000821,59927.0,59926.0,1.44415767]
[1726655860875,0.000821,59927.0,59926.0,1.56897351]
[1726655863622,0.000821,59927.0,59926.0,1.56893476]
[1726655866521,0.000821,59927.0,59926.0,1.44415767]
[1726655867185,0.000821,59927.0,59926.0,1.43115767]
[1726655867654,0.000821,59927.0,59926.0,1.44515767]
[1726655867888,0.000821,59927.0,59926.0,1.54493383]
[1726655868321,0.000821,59927.0,59926.0,1.54492902]
[1726655868982,0.000821,59927.0,59926.0,1.44515767]
[1726655869918,0.000821,59927.0,59926.0,1.53092041]
[1726655870376,0.000821,59927.0,59926.0,1.54492041]
[1726655873267,0.000821,59927.0,59926.0,1.36950874]
[1726655873496,0.000821,59927.0,59926.0,1.31962913]
[1726655874176,0.000821,59927.0,59926.0,1.33262913]
[1726655874391,0.000821,59927.0,59926.0,1.269746]
[1726655874832,0.000821,59927.0,59926.0,1.279746]
[1726655875076,0.000821,59927.0,59926.0,1.269746]
[1726655876831,0.000821,59927.0,59926.0,1.282746]
[1726655876960,0.000821,59927.0,59926.0,1.269746]
[1726655877170,0.000821,59927.0,59926.0,1.43279967]
[1726655877372,0.000821,59927.0,59926.0,1.51762383]
[1726655877607,0.000821,59927.0,59926.0,1.43279967]
[1726655877794,0.000821,59927.0,59926.0,1.50758933]
[1726655878038,0.000821,59927.0,59926.0,1.51958933]
[1726655878245,0.000821,59927.0,59926.0,1.50758933]
[1726655878457,0.000821,59927.0,59926.0,1.48266565]
[1726655878673,0.000821,59927.0,59926.0,1.44279967]
[1726655879604,0.000821,59927.0,59926.0,1.279746]
[1726655880032,0.000821,59927.0,59926.0,1.269746]
[1726655880578,0.000821,59927.0,59926.0,1.283746]
[1726655880888,0.000821,59927.0,59926.0,1.269746]
[1726655881106,0.000821,59927.0,59926.0,1.280746]
[1726655881600,0.000821,59927.0,59926.0,1.269746]
[1726655881846,0.000821,59927.0,59926.0,1.283746]
[1726655883222,0.000821,59927.0,59926.0,1.269746]
[1726655883687,0.000821,59927.0,59926.0,1.281746]
[1726655883900,0.000821,59927.0,59926.0,1.269746]
[1726655884126,0.000821,59927.0,59926.0,1.283746]
[1726655884597,0.000821,59927.0,59926.0,1.48266434]
[1726655884806,0.000821,59927.0,59926.0,1.49467512]
[1726655885021,0.000821,59927.0,59926.0,1.44479967]
[1726655885205,0.000821,59927.0,59926.0,1.43279967]
[1726655885446,0.000821,59927.0,59926.0,1.53252902]
[1726655885660,0.000821,59927.0,59926.0,1.86627302]
[1726655886276,0.000821,59927.0,59926.0,1.76654367]
[1726655886448,0.000821,59927.0,59926.0,1.86628457]
[1726655886688,0.000821,59927.0,59926.0,1.78054367]
[1726655887183,0.000821,59927.0,59926.0,2.17154367]
[1726655887743,0.00082,59939.0,59938.0,1.267873]
[1726655887772,0.00082,59939.0,59938.0,1.48076815]
[1726655887939,0.00082,59939.0,59938.0,1.43092667]
[1726655888526,0.00082,59939.0,59938.0,1.50569553]
[1726655889006,0.00082,59939.0,59938.0,1.51553531]
[1726655890141,0.00082,59939.0,59938.0,1.52453531]
[1726655890375,0.00082,59939.0,59938.0,1.78344445]
[1726655890632,0.00082,59939.0,59938.0,1.89899736]
[1726655890885,0.00082,59939.0,59938.0,1.90899736]
[1726655891140,0.00082,59939.0,59938.0,1.89899736]
[1726655891402,0.00082,59939.0,59938.0,0.934195]
[1726655891640,0.00082,59939.0,59938.0,0.614517]
[1726655892377,0.01289936,59939.0,59938.0,0.014]
[1726655892582,0.35597362,59942.0,59939.0,0.333671]
[1726655892810,0.35597362,59942.0,59939.0,0.166834]
[1726655893025,0.35597362,59942.0,59937.0,0.33368]
[1726655893240,0.35597362,59942.0,59939.0,0.166836]
[1726655893472,0.35597362,59942.0,59937.0,0.33368]
[1726655893473,0.35597362,59942.0,59941.0,0.16683]
[1726655894107,0.35597362,59942.0,59941.0,0.500491]
[1726655894108,0.35697362,59942.0,59941.0,0.500491]
[1726655894321,0.35697362,59942.0,59938.0,0.166836]
[1726655894322,0.35597362,59942.0,59938.0,0.166836]
[1726655894535,0.35597362,59942.0,59940.0,0.16683]
[1726655895071,0.35597362,59942.0,59941.0,0.16683]
[1726655895911,0.36887298,59942.0,59941.0,0.16683]
[1726655896222,0.36887298,59942.0,59941.0,0.600491]
[1726655896458,0.21739936,59942.0,59941.0,0.602491]
[1726655896672,0.21739936,59942.0,59941.0,0.936152]
[1726655896889,0.01289936,59942.0,59941.0,0.934152]
[1726655897109,0.01746721,59944.0,59941.0,0.934152]
[1726655897110,0.01746721,59944.0,59943.0,0.600475]
[1726655897308,0.01746721,59944.0,59943.0,1.267775]
[1726655898415,0.01746721,59944.0,59943.0,1.43082867]
[1726655898733,0.01746721,59944.0,59943.0,1.43982867]
[1726655899467,0.01746721,59944.0,59943.0,1.77347867]
[1726655899937,0.01746721,59944.0,59943.0,1.76447867]
[1726655900382,0.01746721,59944.0,59943.0,1.77447867]
[1726655904878,2.1e-07,59944.0,59943.0,3.11505267]
[1726655905121,0.000821,59960.0,59959.0,0.600341]
[1726655905352,0.000821,59960.0,59959.0,1.09695567]
[1726655905576,0.01255487,59960.0,59959.0,1.48031103]
[1726655905813,0.000821,59960.0,59959.0,1.48031103]
[1726655906261,0.000821,59960.0,59959.0,1.76407767]
[1726655906522,0.000821,59960.0,59959.0,1.81384919]
[1726655906769,0.000821,59960.0,59959.0,1.86360051]
[1726655907245,0.000821,59960.0,59959.0,1.76507767]
[1726655907268,0.000821,59960.0,59959.0,3.09985667]
[1726655907269,1e-06,59960.0,59959.0,3.09985667]
[1726655907536,1e-06,59960.0,59959.0,3.33414594]
[1726655907916,0.005,59967.0,59966.0,1.19724777]
[1726655908157,0.005,59967.0,59966.0,3.59384744]
[1726655908384,0.00082,59985.0,59969.0,1.71369277]
[1726655908385,9e-07,59970.0,59969.0,1.71369277]
[1726655908603,9e-07,59970.0,59969.0,2.54575644]
[1726655908850,9e-07,59970.0,59969.0,1.82374644]
[1726655909540,9e-07,59970.0,59969.0,1.79374644]
[1726655910010,9e-07,59970.0,59969.0,1.79574644]
[1726655910220,9e-07,59970.0,59969.0,2.31324048]
[1726655910437,9e-07,59970.0,59969.0,2.32724048]
[1726655910872,9e-07,59970.0,59969.0,2.35024048]
[1726655911343,9e-07,59970.0,59969.0,2.22625144]
[1726655911552,0.1777,59992.0,59991.0,0.166691]
[1726655912012,0.1895771,59992.0,59982.0,0.1]
[1726655912233,0.1895771,59992.0,59986.0,0.1]
[1726655912450,0.1895771,59992.0,59986.0,0.333409]
[1726655912686,0.1777,59992.0,59991.0,0.166691]
[1726655912925,0.1777,59992.0,59984.0,0.1]
[1726655912926,0.0118771,59991.0,59984.0,0.1]
[1726655913182,0.4002,59992.0,59991.0,0.166691]
[1726655913412,0.4002,59992.0,59991.0,0.835457]
[1726655913879,0.4002,59992.0,59991.0,0.833457]
[1726655914515,0.000821,59999.0,59998.0,0.500016]
[1726655914543,0.000821,59999.0,59998.0,0.166672]
[1726655914564,0.000821,59999.0,59994.0,0.16668]
[1726655914827,0.167492,59999.0,59994.0,0.166681]
[1726655915027,0.167491,59999.0,59995.0,0.166679]
[1726655915227,0.167491,59999.0,59986.0,0.1]
[1726655915228,0.166674,59998.0,59990.0,0.333383]
[1726655915445,0.000821,59999.0,59998.0,0.166672]
[1726655915657,0.000821,59999.0,59986.0,0.1]
[1726655915876,0.000821,59999.0,59998.0,0.166672]
[1726655916099,0.000821,59999.0,59998.0,0.500016]
[1726655916783,0.000821,59999.0,59998.0,0.166672]
[1726655916994,0.000821,59999.0,59998.0,0.500016]
[1726655917472,0.000821,59999.0,59998.0,0.83336]
[1726655917922,0.001821,59999.0,59998.0,1.266704]
[1726655917954,0.001821,59999.0,59998.0,1.42975767]
[1726655918216,0.001821,59999.0,59998.0,1.76310167]
[1726655918645,1.05837334,60000.0,59999.0,1.266683]
[1726655918869,1.05837334,60000.0,59999.0,1.42973667]
[1726655919087,1.05837334,60000.0,59999.0,1.09639867]
[1726655919560,1.05837334,60000.0,59999.0,1.42973667]
[1726655919561,1.07057528,60000.0,59999.0,1.42973667]
[1726655920237,1.07057528,60000.0,59999.0,0.600007]
[1726655920454,1.07057528,60000.0,59999.0,0.266669]
[1726655920717,1.07057528,60000.0,59998.0,0.1]
[1726655921569,1.07057528,60000.0,59998.0,0.266671]
[1726655921797,1.07057528,60000.0,59997.0,0.266672]
[1726655922232,1.07057528,60000.0,59997.0,0.1]
[1726655922441,1.07057528,60000.0,59997.0,0.266673]
[1726655922883,1.07057528,60000.0,59998.0,0.166671]
[1726655923111,1.07057528,60000.0,59997.0,0.1]
[1726655923342,1.07057528,60000.0,59998.0,0.166671]
[1726655923553,1.07057528,60000.0,59997.0,0.1]